[Event "Titled Tuesday Blitz May 23 Late 2023"]
[White "NikaVolkov"]
[Black "Manukyan, Sargis A."]
[BlackFideId "13303970"]
[WhiteElo "2633"]
[BlackElo "2187"]
[Result "0-1"]
[Round "09"]
[TimeControl "180+2"]
[Date "2023.05.23"]
[WhiteClock "0:00:00"]
[BlackClock "0:00:14"]

1. d4 {[%clk 0:02:55]}  d5 {[%clk 0:03:00]} 2. Nf3 {[%clk 0:02:51]}  Nf6 {[%clk 0:02:59]} 3. e3 {[%clk 0:02:52]}  Bg4 {[%clk 0:02:57]} 4. c4 {[%clk 0:02:52]}  c6 {[%clk 0:02:57]} 5. Be2 {[%clk 0:02:51]}  e6 {[%clk 0:02:57]} 6. Nc3 {[%clk 0:02:48]}  Nbd7 {[%clk 0:02:57]} 7. O-O {[%clk 0:02:48]}  Bd6 {[%clk 0:02:55]} 8. h3 {[%clk 0:02:49]}  Bh5 {[%clk 0:02:55]} 9. Nd2 {[%clk 0:02:49]}  Bg6 {[%clk 0:02:53]} 10. b3 {[%clk 0:02:49]}  O-O {[%clk 0:02:53]} 11. Bb2 {[%clk 0:02:45]}  a5 {[%clk 0:02:49]} 12. Bf3 {[%clk 0:02:41]}  h6 {[%clk 0:02:49]} 13. e4 {[%clk 0:02:38]}  dxe4 {[%clk 0:02:42]} 14. Ndxe4 {[%clk 0:02:38]}  Be7 {[%clk 0:02:40]} 15. Qe2 {[%clk 0:02:36]}  Nxe4 {[%clk 0:02:40]} 16. Nxe4 {[%clk 0:02:36]}  Nf6 {[%clk 0:02:40]} 17. Nc5 {[%clk 0:02:33]}  b6 {[%clk 0:02:35]} 18. Nd3 {[%clk 0:02:29]}  Rc8 {[%clk 0:02:33]} 19. Ne5 {[%clk 0:02:28]}  Bh7 {[%clk 0:02:06]} 20. Nxc6 {[%clk 0:02:25]}  Qc7 {[%clk 0:02:06]} 21. d5 {[%clk 0:02:21]}  Rfe8 {[%clk 0:01:43]} 22. dxe6 {[%clk 0:02:16]}  Bd6 {[%clk 0:01:38]} 23. exf7+ {[%clk 0:01:51]}  Qxf7 {[%clk 0:01:37]} 24. Qd2 {[%clk 0:01:50]}  Ne4 {[%clk 0:01:12]} 25. Qd5 {[%clk 0:01:09]}  Qxd5 {[%clk 0:01:12]} 26. cxd5 {[%clk 0:01:10]}  Nd2 {[%clk 0:01:12]} 27. Rfe1 {[%clk 0:01:09]}  Nxf3+ {[%clk 0:01:12]} 28. gxf3 {[%clk 0:01:10]}  Bf5 {[%clk 0:00:49]} 29. Kg2 {[%clk 0:00:59]}  Kf7 {[%clk 0:00:50]} 30. a4 {[%clk 0:00:32]}  Bc2 {[%clk 0:00:43]} 31. Be5 {[%clk 0:00:22]}  Rxc6 {[%clk 0:00:31]} 32. dxc6 {[%clk 0:00:22]}  Rxe5 {[%clk 0:00:22]} 33. Rxe5 {[%clk 0:00:19]}  Bxe5 {[%clk 0:00:23]} 34. Rc1 {[%clk 0:00:19]}  Bf5 {[%clk 0:00:23]} 35. c7 {[%clk 0:00:19]}  Bc8 {[%clk 0:00:24]} 36. Rc6 {[%clk 0:00:19]}  Ke7 {[%clk 0:00:19]} 37. Rxb6 {[%clk 0:00:10]}  Bxc7 {[%clk 0:00:19]} 38. Rb5 {[%clk 0:00:11]}  Bd7 {[%clk 0:00:19]} 39. Rc5 {[%clk 0:00:08]}  Bb6 {[%clk 0:00:18]} 40. Rc3 {[%clk 0:00:08]}  Be6 {[%clk 0:00:18]} 41. Rc6 {[%clk 0:00:08]}  Bd8 {[%clk 0:00:17]} 42. Rc3 {[%clk 0:00:08]}  Kd7 {[%clk 0:00:18]} 43. Rd3+ {[%clk 0:00:09]}  Kc7 {[%clk 0:00:17]} 44. Rc3+ {[%clk 0:00:09]}  Kb7 {[%clk 0:00:18]} 45. Re3 {[%clk 0:00:10]}  Bd5 {[%clk 0:00:17]} 46. Rd3 {[%clk 0:00:11]}  Kc6 {[%clk 0:00:17]} 47. Rc3+ {[%clk 0:00:11]}  Kd6 {[%clk 0:00:17]} 48. Rd3 {[%clk 0:00:12]}  Bf6 {[%clk 0:00:18]} 49. Kg3 {[%clk 0:00:11]}  Kc5 {[%clk 0:00:18]} 50. f4 {[%clk 0:00:11]}  Bd4 {[%clk 0:00:18]} 51. f5 {[%clk 0:00:10]}  Be4 {[%clk 0:00:19]} 52. Rd1 {[%clk 0:00:11]}  Bxf5 {[%clk 0:00:20]} 53. Kf4 {[%clk 0:00:12]}  Bxh3 {[%clk 0:00:18]} 54. Rc1+ {[%clk 0:00:10]}  Kd6 {[%clk 0:00:17]} 55. Ke4 {[%clk 0:00:10]}  Bf6 {[%clk 0:00:17]} 56. f4 {[%clk 0:00:09]}  Bg2+ {[%clk 0:00:17]} 57. Kd3 {[%clk 0:00:09]}  Bd5 {[%clk 0:00:17]} 58. Rb1 {[%clk 0:00:08]}  Be6 {[%clk 0:00:18]} 59. Ke3 {[%clk 0:00:07]}  g5 {[%clk 0:00:17]} 60. b4 {[%clk 0:00:06]}  axb4 {[%clk 0:00:12]} 61. Rxb4 {[%clk 0:00:06]}  g4 {[%clk 0:00:12]} 62. a5 {[%clk 0:00:06]}  Bd5 {[%clk 0:00:10]} 63. a6 {[%clk 0:00:06]}  Kc5 {[%clk 0:00:09]} 64. Rb1 {[%clk 0:00:02]}  g3 {[%clk 0:00:08]} 65. Rc1+ {[%clk 0:00:01]}  Kb6 {[%clk 0:00:07]} 66. Rd1 {[%clk 0:00:02]}  Bc6 {[%clk 0:00:07]} 67. Rg1 {[%clk 0:00:03]}  g2 {[%clk 0:00:06]} 68. f5 {[%clk 0:00:03]}  Be7 {[%clk 0:00:06]} 69. Rb1+ {[%clk 0:00:02]}  Kxa6 {[%clk 0:00:06]} 70. Ra1+ {[%clk 0:00:02]}  Kb6 {[%clk 0:00:07]} 71. Rb1+ {[%clk 0:00:03]}  Kc7 {[%clk 0:00:07]} 72. Rc1 {[%clk 0:00:04]}  g1=Q+ {[%clk 0:00:07]} 73. Rxg1 {[%clk 0:00:04]}  Bc5+ {[%clk 0:00:07]} 74. Kf4 {[%clk 0:00:05]}  Bxg1 {[%clk 0:00:08]} 75. f6 {[%clk 0:00:06]}  Bc5 {[%clk 0:00:08]} 76. Kg4 {[%clk 0:00:07]}  Bf8 {[%clk 0:00:09]} 77. Kh5 {[%clk 0:00:08]}  Kd6 {[%clk 0:00:10]} 78. Kg6 {[%clk 0:00:09]}  Ke6 {[%clk 0:00:11]} 79. f7 {[%clk 0:00:09]}  Ke7 {[%clk 0:00:11]} 80. Kh7 {[%clk 0:00:09]}  Kxf7 {[%clk 0:00:12]} 81. Kh8 {[%clk 0:00:10]}  h5 {[%clk 0:00:12]} 82. Kh7 {[%clk 0:00:11]}  h4 {[%clk 0:00:13]} 83. Kh8 {[%clk 0:00:00]}  h3 {[%clk 0:00:14]} 0-1


[Site "https://www.chess.com"]

[Event "Titled Tuesday Blitz May 23 Late 2023"]
[White "Zaitsev, Alexander"]
[Black "Melikyan, Gnel"]
[WhiteFideId "4164490"]
[BlackFideId "54109990"]
[WhiteElo "2373"]
[BlackElo "2138"]
[Result "0-1"]
[Round "09"]
[TimeControl "180+2"]
[Date "2023.05.23"]
[WhiteClock "0:00:00"]
[BlackClock "0:00:46"]

1. e4 {[%clk 0:03:00]}  e6 {[%clk 0:02:59]} 2. d4 {[%clk 0:03:00]}  d5 {[%clk 0:03:00]} 3. Nc3 {[%clk 0:03:01]}  dxe4 {[%clk 0:03:00]} 4. Nxe4 {[%clk 0:03:01]}  Nd7 {[%clk 0:03:01]} 5. Nf3 {[%clk 0:03:01]}  Ngf6 {[%clk 0:03:01]} 6. Bd3 {[%clk 0:03:00]}  Nxe4 {[%clk 0:03:01]} 7. Bxe4 {[%clk 0:03:01]}  Nf6 {[%clk 0:03:01]} 8. Bg5 {[%clk 0:03:01]}  Be7 {[%clk 0:03:01]} 9. Bxf6 {[%clk 0:03:01]}  Bxf6 {[%clk 0:03:01]} 10. Qd3 {[%clk 0:03:01]}  c6 {[%clk 0:03:00]} 11. O-O-O {[%clk 0:02:58]}  Qc7 {[%clk 0:03:00]} 12. h4 {[%clk 0:02:45]}  Bd7 {[%clk 0:02:59]} 13. Ne5 {[%clk 0:02:28]}  h6 {[%clk 0:02:33]} 14. f4 {[%clk 0:02:23]}  Rf8 {[%clk 0:02:25]} 15. Qa3 {[%clk 0:01:36]}  Be7 {[%clk 0:02:19]} 16. Qg3 {[%clk 0:01:33]}  g6 {[%clk 0:02:05]} 17. Bxg6 {[%clk 0:01:14]}  fxg6 {[%clk 0:02:02]} 18. Qxg6+ {[%clk 0:01:15]}  Kd8 {[%clk 0:01:57]} 19. Rhe1 {[%clk 0:01:07]}  Bxh4 {[%clk 0:01:51]} 20. Nxd7 {[%clk 0:00:35]}  Qxd7 {[%clk 0:01:45]} 21. Rxe6 {[%clk 0:00:36]}  Kc7 {[%clk 0:01:37]} 22. d5 {[%clk 0:00:36]}  Rae8 {[%clk 0:01:23]} 23. f5 {[%clk 0:00:22]}  Bg5+ {[%clk 0:01:21]} 24. Kb1 {[%clk 0:00:22]}  Rxe6 {[%clk 0:01:16]} 25. fxe6 {[%clk 0:00:20]}  Qxd5 {[%clk 0:01:12]} 26. Qg7+ {[%clk 0:00:10]}  Kb6 {[%clk 0:01:10]} 27. Re1 {[%clk 0:00:08]}  Qxe6 {[%clk 0:00:50]} 28. Qd4+ {[%clk 0:00:08]}  Kc7 {[%clk 0:00:51]} 29. Qg7+ {[%clk 0:00:00]}  Rf7 {[%clk 0:00:46]} 0-1


[Site "https://www.chess.com"]

[Event "Titled Tuesday Blitz May 23 Late 2023"]
[White "gueraumasague"]
[Black "Fernandez Guillen, Ernesto J."]
[BlackFideId "3512428"]
[WhiteElo "2554"]
[BlackElo "2429"]
[Result "0-1"]
[Round "09"]
[TimeControl "180+2"]
[Date "2023.05.23"]
[WhiteClock "0:00:00"]
[BlackClock "0:00:58"]

1. e4 {[%clk 0:03:00]}  e5 {[%clk 0:02:59]} 2. Nc3 {[%clk 0:03:01]}  Nc6 {[%clk 0:02:59]} 3. Bc4 {[%clk 0:03:00]}  Bb4 {[%clk 0:02:56]} 4. Nd5 {[%clk 0:02:59]}  Bc5 {[%clk 0:02:56]} 5. Nf3 {[%clk 0:02:53]}  d6 {[%clk 0:02:53]} 6. c3 {[%clk 0:02:53]}  Bg4 {[%clk 0:02:50]} 7. h3 {[%clk 0:02:52]}  Bh5 {[%clk 0:02:49]} 8. d3 {[%clk 0:02:41]}  Nge7 {[%clk 0:02:45]} 9. b4 {[%clk 0:02:40]}  Bb6 {[%clk 0:02:44]} 10. Nxb6 {[%clk 0:02:40]}  axb6 {[%clk 0:02:45]} 11. g4 {[%clk 0:02:16]}  Bg6 {[%clk 0:02:43]} 12. Nh4 {[%clk 0:02:12]}  d5 {[%clk 0:02:05]} 13. exd5 {[%clk 0:02:12]}  Nxd5 {[%clk 0:02:05]} 14. Nxg6 {[%clk 0:02:11]}  hxg6 {[%clk 0:02:05]} 15. Qf3 {[%clk 0:02:11]}  Nce7 {[%clk 0:02:06]} 16. h4 {[%clk 0:01:43]}  Qd6 {[%clk 0:01:54]} 17. a4 {[%clk 0:01:31]}  O-O-O {[%clk 0:01:50]} 18. Qxf7 {[%clk 0:00:48]}  Rhf8 {[%clk 0:01:45]} 19. Qxg7 {[%clk 0:00:48]}  Nxc3 {[%clk 0:01:39]} 20. O-O {[%clk 0:00:17]}  Ne2+ {[%clk 0:01:33]} 21. Kg2 {[%clk 0:00:17]}  Nd5 {[%clk 0:01:32]} 22. Bg5 {[%clk 0:00:16]}  Ndf4+ {[%clk 0:01:31]} 23. Kh2 {[%clk 0:00:16]}  e4 {[%clk 0:01:30]} 24. Qe7 {[%clk 0:00:13]}  Qd4 {[%clk 0:01:10]} 25. Be6+ {[%clk 0:00:07]}  Kb8 {[%clk 0:01:07]} 26. Rac1 {[%clk 0:00:06]}  Qe5 {[%clk 0:01:00]} 27. dxe4 {[%clk 0:00:00]}  Nxe6+ {[%clk 0:00:58]} 0-1


[Site "https://www.chess.com"]

[Event "Titled Tuesday Blitz May 23 Late 2023"]
[White "Martic, Ivan"]
[Black "Morefield, Jason"]
[WhiteFideId "929301"]
[BlackFideId "30920825"]
[WhiteElo "2360"]
[BlackElo "2171"]
[Result "1-0"]
[Round "09"]
[TimeControl "180+2"]
[Date "2023.05.23"]
[WhiteClock "0:00:35"]
[BlackClock "0:00:08"]

1. c4 {[%clk 0:02:59]}  a6 {[%clk 0:03:00]} 2. e4 {[%clk 0:02:54]}  e5 {[%clk 0:02:55]} 3. Nf3 {[%clk 0:02:53]}  Nc6 {[%clk 0:02:55]} 4. a3 {[%clk 0:02:44]}  Nf6 {[%clk 0:02:52]} 5. Nc3 {[%clk 0:02:42]}  Bc5 {[%clk 0:02:50]} 6. Be2 {[%clk 0:02:40]}  d6 {[%clk 0:02:49]} 7. O-O {[%clk 0:02:39]}  O-O {[%clk 0:02:48]} 8. d3 {[%clk 0:02:39]}  Kh8 {[%clk 0:02:33]} 9. b4 {[%clk 0:02:38]}  Ba7 {[%clk 0:02:32]} 10. Nd5 {[%clk 0:02:29]}  Nxd5 {[%clk 0:02:32]} 11. cxd5 {[%clk 0:02:30]}  Ne7 {[%clk 0:02:32]} 12. d4 {[%clk 0:02:18]}  f5 {[%clk 0:02:30]} 13. dxe5 {[%clk 0:02:13]}  fxe4 {[%clk 0:02:30]} 14. Ng5 {[%clk 0:02:11]}  dxe5 {[%clk 0:02:24]} 15. Bc4 {[%clk 0:02:09]}  Bd4 {[%clk 0:02:14]} 16. Ra2 {[%clk 0:02:05]}  Nxd5 {[%clk 0:02:08]} 17. Qh5 {[%clk 0:02:01]}  Nf6 {[%clk 0:01:52]} 18. Nf7+ {[%clk 0:01:55]}  Rxf7 {[%clk 0:01:50]} 19. Qxf7 {[%clk 0:01:56]}  b5 {[%clk 0:01:42]} 20. Bb3 {[%clk 0:01:44]}  Bb7 {[%clk 0:01:40]} 21. Bg5 {[%clk 0:01:43]}  Qd6 {[%clk 0:01:37]} 22. Rc2 {[%clk 0:01:38]}  Bd5 {[%clk 0:01:28]} 23. Bxd5 {[%clk 0:01:27]}  Nxd5 {[%clk 0:01:27]} 24. Rfc1 {[%clk 0:01:03]}  Rf8 {[%clk 0:01:26]} 25. Qh5 {[%clk 0:00:53]}  h6 {[%clk 0:01:03]} 26. Rc6 {[%clk 0:00:51]}  Bxf2+ {[%clk 0:00:58]} 27. Kh1 {[%clk 0:00:50]}  Qd7 {[%clk 0:00:40]} 28. Bxh6 {[%clk 0:00:49]}  Kg8 {[%clk 0:00:30]} 29. Bxg7 {[%clk 0:00:47]}  Qxg7 {[%clk 0:00:18]} 30. Rg6 {[%clk 0:00:47]}  Bd4 {[%clk 0:00:16]} 31. Qg4 {[%clk 0:00:38]}  Rf7 {[%clk 0:00:13]} 32. Rxg7+ {[%clk 0:00:35]}  Rxg7 {[%clk 0:00:13]} 33. Qe6+ {[%clk 0:00:36]}  Rf7 {[%clk 0:00:12]} 34. Qxd5 {[%clk 0:00:37]}  Kg7 {[%clk 0:00:08]} 35. Qxe4 {[%clk 0:00:35]} 1-0


[Site "https://www.chess.com"]

[Event "Titled Tuesday Blitz May 23 Late 2023"]
[White "Timmermans, Mark"]
[Black "Ladan, Nicholas"]
[WhiteFideId "1026399"]
[BlackFideId "30918855"]
[WhiteElo "2460"]
[BlackElo "2167"]
[Result "0-1"]
[Round "09"]
[TimeControl "180+2"]
[Date "2023.05.23"]
[WhiteClock "0:01:03"]
[BlackClock "0:01:50"]

1. e4 {[%clk 0:03:00]}  e5 {[%clk 0:03:00]} 2. Nf3 {[%clk 0:03:00]}  Nc6 {[%clk 0:03:00]} 3. d4 {[%clk 0:03:01]}  exd4 {[%clk 0:03:00]} 4. Bc4 {[%clk 0:03:01]}  Nf6 {[%clk 0:03:00]} 5. O-O {[%clk 0:03:01]}  d5 {[%clk 0:03:00]} 6. exd5 {[%clk 0:02:56]}  Nxd5 {[%clk 0:03:00]} 7. Re1+ {[%clk 0:02:26]}  Be7 {[%clk 0:02:59]} 8. Nxd4 {[%clk 0:02:25]}  O-O {[%clk 0:02:45]} 9. Bxd5 {[%clk 0:02:10]}  Qxd5 {[%clk 0:02:14]} 10. Nxc6 {[%clk 0:02:09]}  Qxc6 {[%clk 0:02:11]} 11. Rxe7 {[%clk 0:02:09]}  Bh3 {[%clk 0:02:10]} 12. gxh3 {[%clk 0:01:58]}  Rad8 {[%clk 0:02:08]} 13. Nd2 {[%clk 0:01:19]}  Rd6 {[%clk 0:02:00]} 14. Re3 {[%clk 0:01:06]}  f5 {[%clk 0:01:59]} 15. Re2 {[%clk 0:01:03]}  Rg6+ {[%clk 0:01:52]} 16. Kf1 {[%clk 0:01:03]}  Qh1# {[%clk 0:01:50]} 0-1


[Site "https://www.chess.com"]

[Event "Titled Tuesday Blitz May 23 Late 2023"]
[White "Sun, Rick"]
[Black "Janaszak, Dawid"]
[WhiteFideId "30909481"]
[BlackFideId "1119206"]
[WhiteElo "2169"]
[BlackElo "2220"]
[Result "1-0"]
[Round "09"]
[TimeControl "180+2"]
[Date "2023.05.23"]
[WhiteClock "0:01:07"]
[BlackClock "0:01:27"]

1. d4 {[%clk 0:03:00]}  d5 {[%clk 0:02:57]} 2. Nc3 {[%clk 0:03:00]}  e6 {[%clk 0:02:56]} 3. Bf4 {[%clk 0:03:00]}  Bd6 {[%clk 0:02:52]} 4. Bg3 {[%clk 0:02:59]}  Nf6 {[%clk 0:02:51]} 5. Nf3 {[%clk 0:02:59]}  O-O {[%clk 0:02:48]} 6. e3 {[%clk 0:02:56]}  Ne4 {[%clk 0:02:46]} 7. Nxe4 {[%clk 0:02:53]}  dxe4 {[%clk 0:02:45]} 8. Ne5 {[%clk 0:02:35]}  Nd7 {[%clk 0:02:43]} 9. Nc4 {[%clk 0:02:16]}  Be7 {[%clk 0:02:34]} 10. Be2 {[%clk 0:02:03]}  b6 {[%clk 0:02:30]} 11. d5 {[%clk 0:01:58]}  e5 {[%clk 0:01:45]} 12. Nxe5 {[%clk 0:01:46]}  Nxe5 {[%clk 0:01:46]} 13. Bxe5 {[%clk 0:01:47]}  Bb7 {[%clk 0:01:46]} 14. c4 {[%clk 0:01:45]}  Bb4+ {[%clk 0:01:46]} 15. Kf1 {[%clk 0:01:40]}  Qg5 {[%clk 0:01:46]} 16. Bf4 {[%clk 0:01:33]}  Qf6 {[%clk 0:01:47]} 17. Qb3 {[%clk 0:01:32]}  Bc5 {[%clk 0:01:41]} 18. Rc1 {[%clk 0:01:28]}  a5 {[%clk 0:01:38]} 19. Bxc7 {[%clk 0:01:20]}  Rfe8 {[%clk 0:01:33]} 20. Qc3 {[%clk 0:01:14]}  Qh6 {[%clk 0:01:31]} 21. Bf4 {[%clk 0:01:11]}  g6 {[%clk 0:01:27]} 22. Bxh6 {[%clk 0:01:07]} 1-0


[Site "https://www.chess.com"]

[Event "Titled Tuesday Blitz May 23 Late 2023"]
[White "Annaberdiyev, Meylis"]
[Black "Ognean, Mihnea-Ionut"]
[WhiteFideId "14000563"]
[BlackFideId "1232347"]
[WhiteElo "2416"]
[BlackElo "2215"]
[Result "1/2-1/2"]
[Round "09"]
[TimeControl "180+2"]
[Date "2023.05.23"]
[WhiteClock "0:00:02"]
[BlackClock "0:00:03"]

1. e4 {[%clk 0:03:00]}  c6 {[%clk 0:02:59]} 2. d4 {[%clk 0:02:57]}  d5 {[%clk 0:02:59]} 3. exd5 {[%clk 0:02:58]}  cxd5 {[%clk 0:03:00]} 4. Bd3 {[%clk 0:02:58]}  Nc6 {[%clk 0:02:57]} 5. c3 {[%clk 0:02:58]}  Nf6 {[%clk 0:02:57]} 6. Bf4 {[%clk 0:02:58]}  Bg4 {[%clk 0:02:52]} 7. Qb3 {[%clk 0:02:57]}  Qd7 {[%clk 0:02:41]} 8. Nd2 {[%clk 0:02:57]}  e6 {[%clk 0:02:41]} 9. Ngf3 {[%clk 0:02:57]}  Bd6 {[%clk 0:02:40]} 10. Ne5 {[%clk 0:02:57]}  Qc7 {[%clk 0:02:35]} 11. O-O {[%clk 0:02:57]}  O-O {[%clk 0:02:33]} 12. Rae1 {[%clk 0:02:54]}  Bh5 {[%clk 0:02:27]} 13. Bg3 {[%clk 0:02:45]}  Bxe5 {[%clk 0:02:11]} 14. dxe5 {[%clk 0:02:07]}  Nd7 {[%clk 0:02:10]} 15. Qc2 {[%clk 0:02:02]}  Bg6 {[%clk 0:02:09]} 16. Bxg6 {[%clk 0:02:01]}  fxg6 {[%clk 0:02:06]} 17. Nf3 {[%clk 0:01:53]}  Nc5 {[%clk 0:01:59]} 18. Ng5 {[%clk 0:01:31]}  h6 {[%clk 0:01:50]} 19. b4 {[%clk 0:01:31]}  hxg5 {[%clk 0:01:46]} 20. bxc5 {[%clk 0:01:31]}  Qf7 {[%clk 0:01:46]} 21. f4 {[%clk 0:01:30]}  g4 {[%clk 0:01:46]} 22. Rb1 {[%clk 0:01:25]}  Rab8 {[%clk 0:01:46]} 23. Rb5 {[%clk 0:01:21]}  Nxe5 {[%clk 0:01:41]} 24. f5 {[%clk 0:01:19]}  Qe8 {[%clk 0:01:30]} 25. Rbb1 {[%clk 0:01:10]}  exf5 {[%clk 0:01:17]} 26. Qb3 {[%clk 0:00:56]}  Nc4 {[%clk 0:01:04]} 27. Bxb8 {[%clk 0:00:54]}  Qxb8 {[%clk 0:01:05]} 28. Qxb7 {[%clk 0:00:51]}  Qe5 {[%clk 0:01:05]} 29. Rbe1 {[%clk 0:00:46]}  Ne3 {[%clk 0:01:04]} 30. c6 {[%clk 0:00:30]}  Rf7 {[%clk 0:00:24]} 31. Qc8+ {[%clk 0:00:16]}  Kh7 {[%clk 0:00:25]} 32. Qd8 {[%clk 0:00:17]}  f4 {[%clk 0:00:21]} 33. Kh1 {[%clk 0:00:10]}  g5 {[%clk 0:00:21]} 34. c4 {[%clk 0:00:05]}  g3 {[%clk 0:00:21]} 35. h3 {[%clk 0:00:05]}  g4 {[%clk 0:00:16]} 36. Rxe3 {[%clk 0:00:05]}  Qxe3 {[%clk 0:00:15]} 37. c7 {[%clk 0:00:03]}  gxh3 {[%clk 0:00:03]} 38. Qh4+ {[%clk 0:00:02]}  Kg6 {[%clk 0:00:03]} 39. Qg4+ {[%clk 0:00:01]}  Kf6 {[%clk 0:00:03]} 40. c8=Q {[%clk 0:00:01]}  hxg2+ {[%clk 0:00:03]} 41. Kxg2 {[%clk 0:00:02]}  Qd2+ {[%clk 0:00:03]} 42. Kf3 {[%clk 0:00:01]}  Qe3+ {[%clk 0:00:03]} 43. Kg2 {[%clk 0:00:01]}  Qd2+ {[%clk 0:00:04]} 44. Kf3 {[%clk 0:00:02]}  Qe3+ {[%clk 0:00:03]} 45. Kg2 {[%clk 0:00:02]} 1/2-1/2


[Site "https://www.chess.com"]

[Event "Titled Tuesday Blitz May 23 Late 2023"]
[White "Haydon, David L"]
[Black "SergioMoralesG"]
[WhiteFideId "415405"]
[WhiteElo "2326"]
[BlackElo "2496"]
[Result "0-1"]
[Round "09"]
[TimeControl "180+2"]
[Date "2023.05.23"]
[WhiteClock "0:00:33"]
[BlackClock "0:00:48"]

1. Nf3 {[%clk 0:03:00]}  g6 {[%clk 0:02:57]} 2. e3 {[%clk 0:03:00]}  Bg7 {[%clk 0:02:58]} 3. c4 {[%clk 0:03:00]}  c5 {[%clk 0:02:57]} 4. Nc3 {[%clk 0:02:59]}  Nf6 {[%clk 0:02:55]} 5. b3 {[%clk 0:02:59]}  d5 {[%clk 0:02:53]} 6. cxd5 {[%clk 0:02:56]}  Nxd5 {[%clk 0:02:54]} 7. Bb2 {[%clk 0:02:56]}  O-O {[%clk 0:02:53]} 8. Be2 {[%clk 0:02:55]}  Nc6 {[%clk 0:02:51]} 9. O-O {[%clk 0:02:54]}  Ndb4 {[%clk 0:02:46]} 10. Qb1 {[%clk 0:02:48]}  Bf5 {[%clk 0:02:43]} 11. e4 {[%clk 0:02:47]}  Bg4 {[%clk 0:02:43]} 12. a3 {[%clk 0:02:45]}  Bxf3 {[%clk 0:02:39]} 13. gxf3 {[%clk 0:02:25]}  Nd4 {[%clk 0:02:32]} 14. axb4 {[%clk 0:02:24]}  cxb4 {[%clk 0:02:33]} 15. Bd1 {[%clk 0:02:21]}  bxc3 {[%clk 0:02:28]} 16. dxc3 {[%clk 0:02:21]}  Ne6 {[%clk 0:02:26]} 17. Qc1 {[%clk 0:02:11]}  Qd6 {[%clk 0:02:21]} 18. Ra5 {[%clk 0:02:04]}  a6 {[%clk 0:02:14]} 19. Rd5 {[%clk 0:02:03]}  Qc7 {[%clk 0:02:12]} 20. c4 {[%clk 0:01:59]}  Bxb2 {[%clk 0:01:59]} 21. Qxb2 {[%clk 0:01:59]}  Nf4 {[%clk 0:01:58]} 22. Rg5 {[%clk 0:01:56]}  Rfd8 {[%clk 0:01:51]} 23. Rg4 {[%clk 0:01:54]}  e5 {[%clk 0:01:45]} 24. Rxf4 {[%clk 0:01:49]}  exf4 {[%clk 0:01:45]} 25. Bc2 {[%clk 0:01:50]}  Rd2 {[%clk 0:01:44]} 26. Qc3 {[%clk 0:01:42]}  Rad8 {[%clk 0:01:43]} 27. e5 {[%clk 0:01:42]}  R8d4 {[%clk 0:01:40]} 28. Re1 {[%clk 0:01:38]}  Qe7 {[%clk 0:01:38]} 29. c5 {[%clk 0:01:31]}  Qh4 {[%clk 0:01:33]} 30. Rf1 {[%clk 0:01:27]}  Qg5+ {[%clk 0:01:33]} 31. Kh1 {[%clk 0:01:27]}  Qxe5 {[%clk 0:01:34]} 32. c6 {[%clk 0:01:22]}  Qe2 {[%clk 0:01:29]} 33. Kg2 {[%clk 0:01:18]}  bxc6 {[%clk 0:01:23]} 34. Be4 {[%clk 0:01:17]}  Qb5 {[%clk 0:01:02]} 35. Ra1 {[%clk 0:01:06]}  c5 {[%clk 0:00:59]} 36. Ra4 {[%clk 0:00:47]}  Qe2 {[%clk 0:00:58]} 37. Rxd4 {[%clk 0:00:33]}  Qxf2+ {[%clk 0:00:56]} 38. Kh3 {[%clk 0:00:33]}  Qxh2+ {[%clk 0:00:49]} 39. Kg4 {[%clk 0:00:33]}  Qg3# {[%clk 0:00:48]} 0-1


[Site "https://www.chess.com"]

[Event "Titled Tuesday Blitz May 23 Late 2023"]
[White "Dragomirescu, Robin-Alexandru"]
[Black "Amburgy, Ryan"]
[WhiteFideId "1213849"]
[BlackFideId "30924820"]
[WhiteElo "2356"]
[BlackElo "2134"]
[Result "1/2-1/2"]
[Round "09"]
[TimeControl "180+2"]
[Date "2023.05.23"]
[WhiteClock "0:00:19"]
[BlackClock "0:00:28"]

1. b3 {[%clk 0:03:00]}  e5 {[%clk 0:02:59]} 2. Bb2 {[%clk 0:03:00]}  Nc6 {[%clk 0:02:59]} 3. e3 {[%clk 0:02:59]}  Nf6 {[%clk 0:03:00]} 4. Nf3 {[%clk 0:03:00]}  e4 {[%clk 0:02:59]} 5. Nd4 {[%clk 0:03:00]}  Nxd4 {[%clk 0:02:58]} 6. Bxd4 {[%clk 0:03:01]}  d5 {[%clk 0:02:58]} 7. c4 {[%clk 0:03:01]}  c6 {[%clk 0:02:36]} 8. Nc3 {[%clk 0:02:58]}  Be7 {[%clk 0:02:35]} 9. cxd5 {[%clk 0:02:56]}  cxd5 {[%clk 0:02:35]} 10. d3 {[%clk 0:02:40]}  Bg4 {[%clk 0:02:03]} 11. Qd2 {[%clk 0:02:39]}  O-O {[%clk 0:02:01]} 12. h3 {[%clk 0:02:37]}  Bf5 {[%clk 0:02:01]} 13. dxe4 {[%clk 0:02:17]}  Nxe4 {[%clk 0:02:01]} 14. Nxe4 {[%clk 0:02:17]}  Bxe4 {[%clk 0:02:01]} 15. Bd3 {[%clk 0:02:13]}  Rc8 {[%clk 0:01:45]} 16. O-O {[%clk 0:02:09]}  a6 {[%clk 0:01:35]} 17. Rac1 {[%clk 0:01:40]}  Qd7 {[%clk 0:01:35]} 18. f3 {[%clk 0:01:31]}  Bg6 {[%clk 0:01:32]} 19. Bxg6 {[%clk 0:01:27]}  hxg6 {[%clk 0:01:33]} 20. Rxc8 {[%clk 0:01:27]}  Rxc8 {[%clk 0:01:34]} 21. Rc1 {[%clk 0:01:27]}  Bd6 {[%clk 0:01:27]} 22. Rxc8+ {[%clk 0:01:17]}  Qxc8 {[%clk 0:01:28]} 23. f4 {[%clk 0:01:18]}  Qf5 {[%clk 0:01:22]} 24. Bc3 {[%clk 0:00:56]}  Bc5 {[%clk 0:01:19]} 25. Kh2 {[%clk 0:00:52]}  Qe4 {[%clk 0:01:09]} 26. Bd4 {[%clk 0:00:48]}  Bd6 {[%clk 0:01:07]} 27. h4 {[%clk 0:00:30]}  f6 {[%clk 0:01:04]} 28. Qc3 {[%clk 0:00:19]}  Kh7 {[%clk 0:00:55]} 29. Kg3 {[%clk 0:00:15]}  g5 {[%clk 0:00:47]} 30. hxg5 {[%clk 0:00:16]}  fxg5 {[%clk 0:00:48]} 31. Be5 {[%clk 0:00:17]}  gxf4+ {[%clk 0:00:42]} 32. exf4 {[%clk 0:00:17]}  Bb4 {[%clk 0:00:38]} 33. Qf3 {[%clk 0:00:16]}  g6 {[%clk 0:00:31]} 34. Qxe4 {[%clk 0:00:15]}  dxe4 {[%clk 0:00:32]} 35. Kf2 {[%clk 0:00:15]}  Bc5+ {[%clk 0:00:33]} 36. Ke2 {[%clk 0:00:15]}  Kg8 {[%clk 0:00:31]} 37. g4 {[%clk 0:00:14]}  Kf7 {[%clk 0:00:31]} 38. f5 {[%clk 0:00:15]}  gxf5 {[%clk 0:00:27]} 39. gxf5 {[%clk 0:00:16]}  b5 {[%clk 0:00:28]} 40. a4 {[%clk 0:00:16]}  bxa4 {[%clk 0:00:28]} 41. bxa4 {[%clk 0:00:17]}  Ba7 {[%clk 0:00:29]} 42. Kd2 {[%clk 0:00:17]}  Bc5 {[%clk 0:00:28]} 43. Ke2 {[%clk 0:00:17]}  Ba7 {[%clk 0:00:28]} 44. Kd2 {[%clk 0:00:18]}  Bc5 {[%clk 0:00:28]} 45. Ke2 {[%clk 0:00:19]} 1/2-1/2


[Site "https://www.chess.com"]